Workbook

Sheet паспорт
A1: ПАТ "УКРТРАНСГАЗ" | G1: ПАСПОРТ ФІЗИКО-ХІМІЧНИХ ПОКАЗНИКІВ ПРИРОДНОГО ГАЗУ № 217
A2: Філія "УМГ "ЛЬВІВТРАНСГАЗ" | G2: переданого Тернопільським ЛВУМГ та прийнятого ПАТ "Івано-Франківськгаз"
A3: Рогатинський п/м Тернопільське ЛВУМГ | G3: Маршрут № 217
A4: Вимірювальна хіміко-аналітична лабораторія
A5: Свідоцтво № РЛ 156/15 чинно до 14.12.2020 р. | K5: по газопроводу "Торжок-Долина " | V5: за період з | X5: 2017-04-01 | Z5: по | AA5: 2017-04-30
A7: Число місяця | B7: Компонентний склад, % мол. | N7: Фізико-хімічні показники газу обчислені на основі компонентного складу, 101,325 кПа | X7: Температура точки роси вологи (Р = 3.92 МПа), ºС | Y7: Температура точки роси вуглеводнів, ºС | Z7: Вміст сірководню, г/м3 | AA7: Вміст меркаптанової сірки, г/м3 | AB7: Вміст механічних домішок, г/м3
N8: Густина абсолютна, кг/м3,при 20 ºС, | O8: Температура вимірювання/згоряння при 20/25°С
B9: метан, С1 | C9: етан, С2 | D9: пропан, С3 | E9: ізо-бутан, і-С4 | F9: н-бутан, н-С4 | G9: нео-пентан, нео-С5 | H9: ізо-пентан, і-С5 | I9: н-пентан, н-С5 | J9: гексани та вищі, С6+ | K9: кисень, О2 | L9: азот, N2 | M9: діоксид вуглецю, CО2 | O9: Теплота згоряння нижча | R9: Теплота згоряння вища | U9: Число Воббе вище
O10: ккал/м3 | P10: МДж/м3 | Q10: кВт⋅год/м3 | R10: ккал/м3 | S10: МДж/м3 | T10: кВт⋅год/м3 | U10: ккал/м3 | V10: МДж/м3 | W10: кВт⋅год/м3
A11: 1 | AC11: =SUM(B11:M11)+$K$42+$N$42 -> 0
A12: 2 | AC12: 0
A13: 3 | AC13: 0
A14: 4 | B14: 89.7291 | C14: 5.0146 | D14: 1.0546 | E14: 0.1087 | F14: 0.1624 | G14: 0.0013 | H14: 0.0445 | I14: 0.0345 | J14: 0.0385 | K14: 0.0102 | L14: 1.6158 | M14: 2.1858 | N14: 0.7514 | O14: =P14*238.8459 -> 8207.270585 | P14: 34.3622 | Q14: =P14/3.6 -> 9.545055556 | R14: =S14*238.8459 -> 9086.414574 | S14: 38.043 | T14: =S14/3.6 -> 10.5675 | U14: =V14*238.8459 -> 11509.74508 | V14: 48.189 | W14: =V14/3.6 -> 13.38583333 | AC14: 100 | AD14: =IF(AC14=100,"ОК"," ") -> ОК
A15: 5 | O15: 8207.270585 | P15: 34.3622 | Q15: 9.545055556 | R15: 9086.414574 | S15: 38.043 | T15: 10.5675 | AC15: 0
A16: 6 | O16: 8207.270585 | P16: 34.3622 | Q16: 9.545055556 | R16: 9086.414574 | S16: 38.043 | T16: 10.5675 | AC16: 0
A17: 7 | O17: =P17*238.8459 -> 8206.745124 | P17: 34.36 | Q17: =P17/3.6 -> 9.544444444 | R17: =S17*238.8459 -> 9085.698036 | S17: 38.04 | T17: =S17/3.6 -> 10.56666667
A18: 8 | O18: 8207.270585 | P18: 34.3622 | Q18: =P18/3.6 -> 9.545055556 | R18: =S18*238.8459 -> 9086.414574 | S18: 38.043 | T18: =S18/3.6 -> 10.5675 | AC18: 0
A19: 9 | O19: 8207.270585 | P19: 34.3622 | Q19: 9.545055556 | R19: 9086.414574 | S19: 38.043 | T19: 10.5675 | AC19: 0
A20: 10 | O20: 8207.270585 | P20: 34.3622 | Q20: =P20/3.6 -> 9.545055556 | R20: 9086.414574 | S20: 38.043 | T20: =S20/3.6 -> 10.5675 | AC20: 0
A21: 11 | B21: 89.4655 | C21: 5.1417 | D21: 1.1765 | E21: 0.1209 | F21: 0.1877 | G21: 0.0022 | H21: 0.0497 | I21: 0.0402 | J21: 0.0509 | K21: 0.0102 | L21: 1.6291 | M21: 2.1254 | N21: 0.7543 | O21: 8247.77885 | P21: 34.5318 | Q21: 9.592166667 | R21: 9134.589792 | S21: 38.2447 | T21: 10.62352778 | U21: =V21*238.8459 -> 11543.06408 | V21: 48.3285 | W21: =V21/3.6 -> 13.42458333 | AC21: 100 | AD21: ОК
A22: 12 | O22: 8247.77885 | P22: 34.5318 | Q22: 9.592166667 | R22: 9134.589792 | S22: 38.2447 | T22: 10.62352778 | AC22: 0
A23: 13 | O23: 8247.77885 | P23: 34.5318 | Q23: 9.592166667 | R23: 9134.589792 | S23: 38.2447 | T23: 10.62352778 | AC23: 0
A24: 14 | O24: 8247.77885 | P24: 34.5318 | Q24: 9.592166667 | R24: 9134.589792 | S24: 38.2447 | T24: 10.62352778
A25: 15 | O25: 8247.77885 | P25: 34.5318 | Q25: 9.592166667 | R25: 9134.589792 | S25: 38.2447 | T25: 10.62352778 | AC25: 0
A26: 16 | O26: 8247.77885 | P26: 34.5318 | Q26: 9.592166667 | R26: 9134.589792 | S26: 38.2447 | T26: 10.62352778 | AC26: 0
A27: 17 | O27: 8247.77885 | P27: 34.5318 | Q27: =P27/3.6 -> 9.592166667 | R27: 9134.589792 | S27: 38.2447 | T27: =S27/3.6 -> 10.62352778 | AC27: 0
A28: 18 | B28: 89.7174 | C28: 5.0036 | D28: 1.1521 | E28: 0.1228 | F28: 0.1954 | G28: 0.0019 | H28: 0.0521 | I28: 0.0425 | J28: 0.0516 | K28: 0.0106 | L28: 1.6578 | M28: 1.9922 | N28: 0.7521 | O28: 8247.46835 | P28: 34.5305 | Q28: 9.591805556 | R28: 9134.565907 | S28: 38.2446 | T28: 10.6235 | U28: =V28*238.8459 -> 11560.02214 | V28: 48.3995 | W28: =V28/3.6 -> 13.44430556 | AC28: 100 | AD28: ОК
A29: 19 | O29: 8247.46835 | P29: 34.5305 | Q29: 9.591805556 | R29: 9134.565907 | S29: 38.2446 | T29: 10.6235 | AC29: 0
A30: 20 | O30: 8247.46835 | P30: 34.5305 | Q30: 9.591805556 | R30: 9134.565907 | S30: 38.2446 | T30: 10.6235 | AC30: 0 | AD30: =IF(AC30=100,"ОК"," ") -> 
A31: 21 | O31: 8247.46835 | P31: 34.5305 | Q31: 9.591805556 | R31: 9134.565907 | S31: 38.2446 | T31: 10.6235
A32: 22 | O32: 8247.46835 | P32: 34.5305 | Q32: =P32/3.6 -> 9.591805556 | R32: =S32*238.8459 -> 9134.565907 | S32: 38.2446 | T32: 10.6235 | AC32: 0
A33: 23 | O33: 8247.46835 | P33: 34.5305 | Q33: =P33/3.6 -> 9.591805556 | R33: 9134.565907 | S33: 38.2446 | T33: =S33/3.6 -> 10.6235 | AC33: 0 | AD33: =IF(AC33=100,"ОК"," ") -> 
A34: 24 | O34: 8247.46835 | P34: 34.5305 | Q34: 9.591805556 | R34: 9134.565907 | S34: 38.2446 | T34: 10.6235 | AC34: 0
A35: 25 | B35: 90.1186 | C35: 4.8499 | D35: 1.0578 | E35: 0.111 | F35: 0.1684 | G35: 0.002 | H35: 0.0459 | I35: 0.0363 | J35: 0.0405 | K35: 0.0102 | L35: 1.6382 | M35: 1.9211 | N35: 0.7478 | O35: 8219.762226 | P35: 34.4145 | Q35: 9.559583333 | R35: 9105.163977 | S35: 38.1215 | T35: 10.58930556 | U35: =V35*238 -> 11514.4876 | V35: 48.3802 | W35: =V35/3.6 -> 13.43894444 | AC35: 99.9999
A36: 26 | O36: 8219.762226 | P36: 34.4145 | Q36: 9.559583333 | R36: 9104.805708 | S36: 38.12 | T36: =S36/3.6 -> 10.58888889 | AC36: 0
A37: 27 | O37: 8219.762226 | P37: 34.4145 | Q37: 9.559583333 | R37: 9104.805708 | S37: 38.12 | T37: 10.58888889 | AC37: 0
A38: 28 | O38: 8219.762226 | P38: 34.4145 | Q38: 9.559583333 | R38: 9104.805708 | S38: 38.12 | T38: 10.58888889
A39: 29 | O39: 8219.762226 | P39: 34.4145 | Q39: 9.559583333 | R39: 9104.805708 | S39: 38.12 | T39: 10.58888889 | AC39: 0
A40: 30 | O40: 8219.762226 | P40: 34.4145 | Q40: 9.559583333 | R40: 9104.805708 | S40: 38.12 | T40: 10.58888889 | AC40: 0
A41: 31 | AC41: 0
A42: Рівень одоризації відповідає чинним нормативним документам | O42: 8233.587922 | P42: 34.47238543 | Q42: 9.575662618 | R42: 9118.404378 | S42: 38.17693491 | T42: 10.60470414
H43: Середньозважене значення теплоти згоряння:
B46: Головний інженер Тернопільського ЛВУМГ Тарапата Я.І.
C47: Підрозділу підприємства, якому підпорядкована лабораторія | O47: прізвище | R47: підпис | V47: дата
B48: Хімік Чорна Г.В.
C49: Лабораторія, де здійснювалось вимірювання газу | O49: прізвище | R49: підпис | V49: дата
B50: Начальник служби метрології Лукавий Р.М.
C51: Підрозділу, відповідального за облік газу за маршрутом | O51: прізвище | R51: підпис | V51: дата

Sheet додаток
A2: Додаток до Паспорту фізико-хімічних показників природного газу №217
A4: Область | B4: ГРС, прямий споживач | C4: Cередньозважене значення вищої теплоти згоряння
C5: МДж/м³ | D5: ккал/м³ | E5: кВт*год./м³
A6: Івано-Франківська область | B6: ГРС Чагрів | C6: 38.17579229 | D6: 9118.131467 | E6: 10.60470414
B7: ГРС Озеряни | C7: 38.17785037 | D7: 9118.623032 | E7: 10.60470414
A8: Середньозважене значення вищої теплоти згоряння по маршруту № 217 | C8: 38.17693491 | D8: 9118.404378 | E8: 10.60470414
A12: Головний інженер Тернопільського ЛВУМГ Тарапата Я.І.
A13: Підрозділу підприємства, якому підпорядкована лабораторія | D13: прізвище | E13: підпис | F13: дата
A14: Хімік Чорна Г.В.
A15: Лабораторія, де здійснювалось вимірювання газу | D15: прізвище | E15: підпис | F15: дата
A16: Начальник служби метрології Лукавий Р.М.
A17: Підрозділу, відповідального за облік газу за маршрутом | D17: прізвище | E17: підпис | F17: дата

Sheet variablesList (hidden)
A1: 3 | B1: x:\gaysin | C1: 10, 11, 24, 25, 127, 128, 132, 180, 207, 215 | D1: x:\
B2: x:\Illinci
B3: x:\Talne
